[Event "Titled Tuesday Blitz November 01 Late 2022"]
[White "Seo, Jung Min"]
[Black "Suleymanli, Aydin"]
[WhiteFideId "1734687"]
[BlackFideId "13413937"]
[WhiteElo "2455"]
[BlackElo "2481"]
[Result "0-1"]
[Round "06"]
[TimeControl "180+1"]
[Date "2022.11.01"]
[WhiteClock "0:00:02"]
[BlackClock "0:00:05"]

1. e4 {[%clk 0:03:00]}  c5 {[%clk 0:02:59]} 2. Nf3 {[%clk 0:03:01]}  d6 {[%clk 0:02:55]} 3. Bb5+ {[%clk 0:03:01]}  Nd7 {[%clk 0:02:53]} 4. a4 {[%clk 0:02:58]}  Nf6 {[%clk 0:02:52]} 5. Nc3 {[%clk 0:02:57]}  a6 {[%clk 0:02:48]} 6. Be2 {[%clk 0:02:54]}  Ne5 {[%clk 0:02:44]} 7. Nxe5 {[%clk 0:02:50]}  dxe5 {[%clk 0:02:45]} 8. Bc4 {[%clk 0:02:47]}  Bg4 {[%clk 0:02:29]} 9. Be2 {[%clk 0:02:46]}  Bxe2 {[%clk 0:02:16]} 10. Qxe2 {[%clk 0:02:46]}  e6 {[%clk 0:02:14]} 11. O-O {[%clk 0:02:42]}  g5 {[%clk 0:02:12]} 12. d3 {[%clk 0:02:36]}  h6 {[%clk 0:01:49]} 13. a5 {[%clk 0:02:35]}  Bg7 {[%clk 0:01:44]} 14. Na4 {[%clk 0:02:23]}  Qxa5 {[%clk 0:01:28]} 15. Be3 {[%clk 0:02:22]}  Qc7 {[%clk 0:01:27]} 16. Nxc5 {[%clk 0:02:20]}  O-O {[%clk 0:01:23]} 17. b4 {[%clk 0:02:19]}  Rfc8 {[%clk 0:01:07]} 18. c4 {[%clk 0:02:16]}  Bf8 {[%clk 0:01:02]} 19. Rfb1 {[%clk 0:02:07]}  a5 {[%clk 0:00:58]} 20. Na4 {[%clk 0:01:54]}  axb4 {[%clk 0:00:55]} 21. c5 {[%clk 0:01:51]}  Nd7 {[%clk 0:00:46]} 22. Rxb4 {[%clk 0:01:49]}  Qc6 {[%clk 0:00:19]} 23. Qb2 {[%clk 0:01:01]}  Bxc5 {[%clk 0:00:10]} 24. Nxc5 {[%clk 0:00:57]}  Rxa1+ {[%clk 0:00:10]} 25. Qxa1 {[%clk 0:00:57]}  Nxc5 {[%clk 0:00:10]} 26. Rc4 {[%clk 0:00:52]}  Qd6 {[%clk 0:00:08]} 27. h4 {[%clk 0:00:37]}  f6 {[%clk 0:00:04]} 28. hxg5 {[%clk 0:00:34]}  hxg5 {[%clk 0:00:04]} 29. Qa7 {[%clk 0:00:21]}  b6 {[%clk 0:00:03]} 30. Rb4 {[%clk 0:00:20]}  Nd7 {[%clk 0:00:02]} 31. Rb3 {[%clk 0:00:15]}  Rc7 {[%clk 0:00:03]} 32. Qa8+ {[%clk 0:00:15]}  Kg7 {[%clk 0:00:03]} 33. Qe8 {[%clk 0:00:15]}  Qf8 {[%clk 0:00:03]} 34. Qxf8+ {[%clk 0:00:12]}  Kxf8 {[%clk 0:00:03]} 35. g3 {[%clk 0:00:08]}  Rc6 {[%clk 0:00:03]} 36. f4 {[%clk 0:00:08]}  g4 {[%clk 0:00:04]} 37. Kf2 {[%clk 0:00:07]}  Ke7 {[%clk 0:00:04]} 38. Ke2 {[%clk 0:00:07]}  exf4 {[%clk 0:00:03]} 39. gxf4 {[%clk 0:00:07]}  e5 {[%clk 0:00:04]} 40. fxe5 {[%clk 0:00:05]}  fxe5 {[%clk 0:00:05]} 41. d4 {[%clk 0:00:05]}  exd4 {[%clk 0:00:04]} 42. Bxd4 {[%clk 0:00:06]}  Kf7 {[%clk 0:00:05]} 43. Ke3 {[%clk 0:00:06]}  Kg6 {[%clk 0:00:05]} 44. Kf4 {[%clk 0:00:05]}  Rc4 {[%clk 0:00:04]} 45. Bxb6 {[%clk 0:00:04]}  Nf6 {[%clk 0:00:05]} 46. Bd8 {[%clk 0:00:02]}  Rxe4+ {[%clk 0:00:04]} 47. Kg3 {[%clk 0:00:03]}  Nh5+ {[%clk 0:00:05]} 48. Kg2 {[%clk 0:00:03]}  Nf4+ {[%clk 0:00:04]} 49. Kg3 {[%clk 0:00:03]}  Ne2+ {[%clk 0:00:04]} 50. Kg2 {[%clk 0:00:03]}  Nd4 {[%clk 0:00:04]} 51. Rb6+ {[%clk 0:00:03]}  Kh5 {[%clk 0:00:04]} 52. Bc7 {[%clk 0:00:03]}  Nf5 {[%clk 0:00:04]} 53. Bg3 {[%clk 0:00:02]}  Re2+ {[%clk 0:00:04]} 54. Bf2 {[%clk 0:00:02]}  g3 {[%clk 0:00:05]} 0-1


[Site "https://www.chess.com"]

[Event "Titled Tuesday Blitz November 01 Late 2022"]
[White "Simonovic, Miroslav"]
[Black "Van Osch, Mees"]
[WhiteFideId "919152"]
[BlackFideId "1035967"]
[WhiteElo "2043"]
[BlackElo "2324"]
[Result "0-1"]
[Round "06"]
[TimeControl "180+1"]
[Date "2022.11.02"]
[WhiteClock "0:00:14"]
[BlackClock "0:00:24"]

1. d4 {[%clk 0:03:00]}  Nf6 {[%clk 0:02:56]} 2. Bg5 {[%clk 0:03:01]}  Ne4 {[%clk 0:02:52]} 3. h4 {[%clk 0:03:00]}  c5 {[%clk 0:02:51]} 4. dxc5 {[%clk 0:02:59]}  Nxg5 {[%clk 0:02:48]} 5. hxg5 {[%clk 0:03:00]}  Qa5+ {[%clk 0:02:48]} 6. c3 {[%clk 0:02:56]}  Qxc5 {[%clk 0:02:47]} 7. f4 {[%clk 0:02:54]}  Qe3 {[%clk 0:02:33]} 8. Qd2 {[%clk 0:02:52]}  Qg3+ {[%clk 0:02:32]} 9. Kd1 {[%clk 0:02:52]}  d5 {[%clk 0:02:22]} 10. Nh3 {[%clk 0:02:45]}  Bf5 {[%clk 0:02:10]} 11. e3 {[%clk 0:02:33]}  Nd7 {[%clk 0:02:06]} 12. Qf2 {[%clk 0:02:32]}  Qxf2 {[%clk 0:01:57]} 13. Nxf2 {[%clk 0:02:33]}  e6 {[%clk 0:01:55]} 14. g4 {[%clk 0:02:32]}  Bg6 {[%clk 0:01:50]} 15. Bd3 {[%clk 0:02:27]}  Bc5 {[%clk 0:01:35]} 16. Ke2 {[%clk 0:02:13]}  Ke7 {[%clk 0:01:29]} 17. Nd2 {[%clk 0:02:08]}  f6 {[%clk 0:01:20]} 18. f5 {[%clk 0:02:06]}  Bf7 {[%clk 0:01:18]} 19. gxf6+ {[%clk 0:01:57]}  gxf6 {[%clk 0:01:08]} 20. fxe6 {[%clk 0:01:56]}  Bxe6 {[%clk 0:01:09]} 21. Rxh7+ {[%clk 0:01:55]}  Rxh7 {[%clk 0:01:09]} 22. Bxh7 {[%clk 0:01:56]}  Rh8 {[%clk 0:01:09]} 23. Bc2 {[%clk 0:01:29]}  Ne5 {[%clk 0:01:08]} 24. Rg1 {[%clk 0:01:28]}  Rh2 {[%clk 0:01:03]} 25. Nf3 {[%clk 0:01:12]}  Nxf3 {[%clk 0:01:00]} 26. Kxf3 {[%clk 0:01:13]}  Kd6 {[%clk 0:00:55]} 27. b4 {[%clk 0:01:03]}  Bb6 {[%clk 0:00:54]} 28. a4 {[%clk 0:01:03]}  a6 {[%clk 0:00:53]} 29. a5 {[%clk 0:01:01]}  Bc7 {[%clk 0:00:54]} 30. e4 {[%clk 0:00:45]}  b6 {[%clk 0:00:43]} 31. exd5 {[%clk 0:00:34]}  Bxd5+ {[%clk 0:00:41]} 32. Be4 {[%clk 0:00:34]}  Rxf2+ {[%clk 0:00:40]} 33. Kxf2 {[%clk 0:00:29]}  Bxe4 {[%clk 0:00:41]} 34. Rd1+ {[%clk 0:00:28]}  Ke6 {[%clk 0:00:37]} 35. Ke3 {[%clk 0:00:18]}  Bd5 {[%clk 0:00:29]} 36. axb6 {[%clk 0:00:09]}  Bxb6+ {[%clk 0:00:30]} 37. Kf4 {[%clk 0:00:10]}  Bc7+ {[%clk 0:00:29]} 38. Ke3 {[%clk 0:00:08]}  Be5 {[%clk 0:00:30]} 39. Rc1 {[%clk 0:00:06]}  Bc4 {[%clk 0:00:28]} 40. Kd2 {[%clk 0:00:05]}  Bf4+ {[%clk 0:00:28]} 41. Kc2 {[%clk 0:00:06]}  Bxc1 {[%clk 0:00:28]} 42. Kxc1 {[%clk 0:00:07]}  Be2 {[%clk 0:00:28]} 43. Kd2 {[%clk 0:00:07]}  Bxg4 {[%clk 0:00:28]} 44. c4 {[%clk 0:00:07]}  f5 {[%clk 0:00:28]} 45. b5 {[%clk 0:00:07]}  a5 {[%clk 0:00:26]} 46. c5 {[%clk 0:00:07]}  Kd5 {[%clk 0:00:25]} 47. c6 {[%clk 0:00:07]}  Kd6 {[%clk 0:00:25]} 48. Kc3 {[%clk 0:00:07]}  f4 {[%clk 0:00:24]} 49. Kd4 {[%clk 0:00:07]}  f3 {[%clk 0:00:23]} 50. b6 {[%clk 0:00:07]}  Kxc6 {[%clk 0:00:23]} 51. b7 {[%clk 0:00:07]}  Kxb7 {[%clk 0:00:24]} 52. Ke3 {[%clk 0:00:08]}  a4 {[%clk 0:00:24]} 53. Kf2 {[%clk 0:00:09]}  a3 {[%clk 0:00:24]} 54. Kg3 {[%clk 0:00:09]}  a2 {[%clk 0:00:25]} 55. Kxg4 {[%clk 0:00:10]}  f2 {[%clk 0:00:25]} 56. Kf3 {[%clk 0:00:11]}  f1=Q+ {[%clk 0:00:26]} 57. Kg3 {[%clk 0:00:11]}  Qb5 {[%clk 0:00:26]} 58. Kh2 {[%clk 0:00:12]}  Qe8 {[%clk 0:00:26]} 59. Kg3 {[%clk 0:00:13]}  Qe2 {[%clk 0:00:24]} 60. Kf4 {[%clk 0:00:14]} 0-1


[Site "https://www.chess.com"]

[Event "Titled Tuesday Blitz November 01 Late 2022"]
[White "Soto Vega, Jorge"]
[Black "Ardila, Oscar Humberto"]
[WhiteFideId "3800580"]
[BlackFideId "4404742"]
[WhiteElo "2263"]
[BlackElo "1898"]
[Result "1-0"]
[Round "06"]
[TimeControl "180+1"]
[Date "2022.11.02"]
[WhiteClock "0:01:25"]
[BlackClock "0:00:04"]

1. e4 {[%clk 0:02:58]}  e5 {[%clk 0:02:59]} 2. Nf3 {[%clk 0:02:57]}  Nf6 {[%clk 0:03:00]} 3. Nxe5 {[%clk 0:02:56]}  d6 {[%clk 0:03:00]} 4. Nf3 {[%clk 0:02:56]}  Nxe4 {[%clk 0:03:01]} 5. d4 {[%clk 0:02:56]}  Be7 {[%clk 0:03:00]} 6. Bd3 {[%clk 0:02:56]}  d5 {[%clk 0:03:00]} 7. c4 {[%clk 0:02:56]}  Nc6 {[%clk 0:03:00]} 8. O-O {[%clk 0:02:56]}  Nb4 {[%clk 0:02:58]} 9. Be2 {[%clk 0:02:54]}  O-O {[%clk 0:02:58]} 10. Nc3 {[%clk 0:02:53]}  Nxc3 {[%clk 0:02:47]} 11. bxc3 {[%clk 0:02:52]}  Nc6 {[%clk 0:02:47]} 12. cxd5 {[%clk 0:02:46]}  Qxd5 {[%clk 0:02:46]} 13. c4 {[%clk 0:02:47]}  Qd8 {[%clk 0:02:44]} 14. d5 {[%clk 0:02:46]}  Bf6 {[%clk 0:02:38]} 15. Rb1 {[%clk 0:02:45]}  Ne5 {[%clk 0:02:33]} 16. Nd4 {[%clk 0:02:43]}  Qd6 {[%clk 0:02:17]} 17. Nb5 {[%clk 0:02:40]}  Qe7 {[%clk 0:02:12]} 18. Ba3 {[%clk 0:02:38]}  Qd8 {[%clk 0:02:08]} 19. Bxf8 {[%clk 0:02:32]}  Kxf8 {[%clk 0:02:08]} 20. Kh1 {[%clk 0:02:29]}  a6 {[%clk 0:02:07]} 21. Nd4 {[%clk 0:02:28]}  c5 {[%clk 0:02:04]} 22. Nb3 {[%clk 0:02:26]}  b6 {[%clk 0:01:58]} 23. f4 {[%clk 0:02:25]}  Ng6 {[%clk 0:01:50]} 24. Bf3 {[%clk 0:02:23]}  Qd6 {[%clk 0:01:48]} 25. g3 {[%clk 0:02:22]}  Bf5 {[%clk 0:01:48]} 26. Rc1 {[%clk 0:02:20]}  Re8 {[%clk 0:01:47]} 27. Re1 {[%clk 0:02:19]}  Rxe1+ {[%clk 0:01:42]} 28. Qxe1 {[%clk 0:02:18]}  Ne7 {[%clk 0:01:36]} 29. Nd2 {[%clk 0:02:17]}  Bd4 {[%clk 0:01:32]} 30. Ne4 {[%clk 0:02:16]}  Bxe4 {[%clk 0:01:32]} 31. Qxe4 {[%clk 0:02:15]}  g6 {[%clk 0:01:21]} 32. Rb1 {[%clk 0:02:00]}  Kg7 {[%clk 0:01:15]} 33. Rb3 {[%clk 0:01:57]}  Qf6 {[%clk 0:01:09]} 34. Kg2 {[%clk 0:01:57]}  Nf5 {[%clk 0:01:09]} 35. Ra3 {[%clk 0:01:49]}  Nd6 {[%clk 0:01:07]} 36. Qd3 {[%clk 0:01:48]}  b5 {[%clk 0:00:54]} 37. cxb5 {[%clk 0:01:47]}  axb5 {[%clk 0:00:54]} 38. Ra6 {[%clk 0:01:46]}  Qe7 {[%clk 0:00:50]} 39. Qe2 {[%clk 0:01:46]}  Be3 {[%clk 0:00:39]} 40. Rxd6 {[%clk 0:01:44]}  Qxd6 {[%clk 0:00:39]} 41. Qxe3 {[%clk 0:01:44]}  f6 {[%clk 0:00:33]} 42. Qe6 {[%clk 0:01:44]}  Qd8 {[%clk 0:00:32]} 43. d6 {[%clk 0:01:42]}  c4 {[%clk 0:00:31]} 44. Bc6 {[%clk 0:01:41]}  Kh6 {[%clk 0:00:30]} 45. Bxb5 {[%clk 0:01:38]}  c3 {[%clk 0:00:29]} 46. Qe2 {[%clk 0:01:37]}  Qb6 {[%clk 0:00:28]} 47. d7 {[%clk 0:01:36]}  Qb7+ {[%clk 0:00:26]} 48. Kh3 {[%clk 0:01:35]}  Qc7 {[%clk 0:00:25]} 49. a4 {[%clk 0:01:35]}  c2 {[%clk 0:00:24]} 50. d8=Q {[%clk 0:01:31]}  Qxd8 {[%clk 0:00:09]} 51. Qxc2 {[%clk 0:01:31]}  f5 {[%clk 0:00:10]} 52. Qc5 {[%clk 0:01:29]}  Qd1 {[%clk 0:00:08]} 53. Qf8+ {[%clk 0:01:28]}  Kh5 {[%clk 0:00:08]} 54. Qe7 {[%clk 0:01:26]}  Qg4+ {[%clk 0:00:08]} 55. Kg2 {[%clk 0:01:25]}  Qd1 {[%clk 0:00:04]} 56. Qg5# {[%clk 0:01:25]} 1-0


[Site "https://www.chess.com"]

[Event "Titled Tuesday Blitz November 01 Late 2022"]
[White "Urbina Perez, Juan Antonio"]
[Black "Roque Sola, Jose Luis"]
[WhiteFideId "2217368"]
[BlackFideId "5120390"]
[WhiteElo "2197"]
[BlackElo "2117"]
[Result "1-0"]
[Round "06"]
[TimeControl "180+1"]
[Date "2022.11.02"]
[WhiteClock "0:00:15"]
[BlackClock "0:00:01"]

1. e4 {[%clk 0:03:00]}  e6 {[%clk 0:02:58]} 2. d4 {[%clk 0:02:59]}  d5 {[%clk 0:02:56]} 3. Nd2 {[%clk 0:02:59]}  c5 {[%clk 0:02:53]} 4. exd5 {[%clk 0:02:58]}  Qxd5 {[%clk 0:02:53]} 5. Ngf3 {[%clk 0:02:58]}  cxd4 {[%clk 0:02:52]} 6. Bc4 {[%clk 0:02:59]}  Qd8 {[%clk 0:02:52]} 7. O-O {[%clk 0:02:59]}  Nf6 {[%clk 0:02:51]} 8. Nb3 {[%clk 0:03:00]}  Nc6 {[%clk 0:02:51]} 9. Qe2 {[%clk 0:03:00]}  Bd6 {[%clk 0:02:23]} 10. Rd1 {[%clk 0:03:00]}  a6 {[%clk 0:02:16]} 11. Nbxd4 {[%clk 0:02:58]}  Nxd4 {[%clk 0:02:17]} 12. Nxd4 {[%clk 0:02:58]}  Qc7 {[%clk 0:02:10]} 13. h3 {[%clk 0:02:56]}  O-O {[%clk 0:02:10]} 14. a4 {[%clk 0:02:54]}  e5 {[%clk 0:02:08]} 15. Nf3 {[%clk 0:02:49]}  h6 {[%clk 0:01:56]} 16. b3 {[%clk 0:02:45]}  Bf5 {[%clk 0:01:55]} 17. Bb2 {[%clk 0:02:43]}  b5 {[%clk 0:01:37]} 18. axb5 {[%clk 0:02:33]}  axb5 {[%clk 0:01:38]} 19. Bxb5 {[%clk 0:02:31]}  Rxa1 {[%clk 0:01:33]} 20. Rxa1 {[%clk 0:02:31]}  Qxc2 {[%clk 0:01:28]} 21. Qxc2 {[%clk 0:02:24]}  Bxc2 {[%clk 0:01:29]} 22. Bc4 {[%clk 0:02:24]}  Rb8 {[%clk 0:01:04]} 23. Nxe5 {[%clk 0:02:17]}  Bxe5 {[%clk 0:01:05]} 24. Bxe5 {[%clk 0:02:17]}  Rb7 {[%clk 0:00:58]} 25. Ra2 {[%clk 0:01:48]}  Nd7 {[%clk 0:00:50]} 26. Bd4 {[%clk 0:01:41]}  Bg6 {[%clk 0:00:28]} 27. Ra7 {[%clk 0:01:32]}  Rxa7 {[%clk 0:00:26]} 28. Bxa7 {[%clk 0:01:33]}  Kf8 {[%clk 0:00:25]} 29. Bd4 {[%clk 0:01:30]}  f6 {[%clk 0:00:21]} 30. b4 {[%clk 0:01:30]}  Ke7 {[%clk 0:00:18]} 31. Kf1 {[%clk 0:01:29]}  Kd8 {[%clk 0:00:18]} 32. Ke2 {[%clk 0:01:29]}  Kc7 {[%clk 0:00:19]} 33. f4 {[%clk 0:01:26]}  Be8 {[%clk 0:00:18]} 34. g4 {[%clk 0:01:18]}  Nb6 {[%clk 0:00:18]} 35. Be6 {[%clk 0:01:16]}  Bc6 {[%clk 0:00:16]} 36. Kf2 {[%clk 0:01:15]}  Nd7 {[%clk 0:00:16]} 37. Bc4 {[%clk 0:01:13]}  Nb6 {[%clk 0:00:15]} 38. Bd3 {[%clk 0:01:12]}  Nd5 {[%clk 0:00:15]} 39. b5 {[%clk 0:01:07]}  Nxf4 {[%clk 0:00:14]} 40. Bf1 {[%clk 0:01:01]}  Bb7 {[%clk 0:00:13]} 41. h4 {[%clk 0:00:54]}  Ng6 {[%clk 0:00:12]} 42. Kg3 {[%clk 0:00:52]}  Ne5 {[%clk 0:00:11]} 43. b6+ {[%clk 0:00:38]}  Kd7 {[%clk 0:00:10]} 44. Bb5+ {[%clk 0:00:34]}  Ke6 {[%clk 0:00:10]} 45. Be2 {[%clk 0:00:29]}  Kd5 {[%clk 0:00:09]} 46. Bf2 {[%clk 0:00:25]}  Ke6 {[%clk 0:00:07]} 47. Kf4 {[%clk 0:00:24]}  g5+ {[%clk 0:00:05]} 48. hxg5 {[%clk 0:00:24]}  hxg5+ {[%clk 0:00:05]} 49. Kg3 {[%clk 0:00:24]}  f5 {[%clk 0:00:05]} 50. gxf5+ {[%clk 0:00:22]}  Kxf5 {[%clk 0:00:06]} 51. Bd4 {[%clk 0:00:19]}  Nd7 {[%clk 0:00:05]} 52. Bd3+ {[%clk 0:00:17]}  Ke6 {[%clk 0:00:04]} 53. Be3 {[%clk 0:00:18]}  Nxb6 {[%clk 0:00:04]} 54. Bxb6 {[%clk 0:00:17]}  Bd5 {[%clk 0:00:04]} 55. Be3 {[%clk 0:00:17]}  Kf6 {[%clk 0:00:03]} 56. Kg4 {[%clk 0:00:16]}  Be6+ {[%clk 0:00:03]} 57. Kh5 {[%clk 0:00:16]}  Bf7+ {[%clk 0:00:03]} 58. Kg4 {[%clk 0:00:16]}  Be6+ {[%clk 0:00:04]} 59. Kg3 {[%clk 0:00:16]}  Bf7 {[%clk 0:00:04]} 60. Bd4+ {[%clk 0:00:17]}  Ke7 {[%clk 0:00:03]} 61. Kg4 {[%clk 0:00:17]}  Be6+ {[%clk 0:00:03]} 62. Kxg5 {[%clk 0:00:17]}  Kd6 {[%clk 0:00:04]} 63. Kf4 {[%clk 0:00:18]}  Bd5 {[%clk 0:00:03]} 64. Be5+ {[%clk 0:00:19]}  Kc5 {[%clk 0:00:04]} 65. Ke3 {[%clk 0:00:19]}  Kc6 {[%clk 0:00:03]} 66. Bd4 {[%clk 0:00:20]}  Kd6 {[%clk 0:00:04]} 67. Bf5 {[%clk 0:00:20]}  Kc6 {[%clk 0:00:04]} 68. Kf4 {[%clk 0:00:21]}  Kd6 {[%clk 0:00:04]} 69. Bg4 {[%clk 0:00:20]}  Ke7 {[%clk 0:00:03]} 70. Ke5 {[%clk 0:00:20]}  Bf7 {[%clk 0:00:03]} 71. Bc5+ {[%clk 0:00:21]}  Ke8 {[%clk 0:00:02]} 72. Bb6 {[%clk 0:00:18]}  Bb3 {[%clk 0:00:02]} 73. Kf6 {[%clk 0:00:17]}  Kf8 {[%clk 0:00:01]} 74. Bh5 {[%clk 0:00:17]}  Kg8 {[%clk 0:00:01]} 75. Bc5 {[%clk 0:00:16]}  Kh7 {[%clk 0:00:01]} 76. Bg6+ {[%clk 0:00:15]} 1-0


[Site "https://www.chess.com"]

[Event "Titled Tuesday Blitz November 01 Late 2022"]
[White "Vusatiuk, Vladimir"]
[Black "Galchenko, Matvey"]
[WhiteFideId "14118610"]
[BlackFideId "24175480"]
[WhiteElo "2208"]
[BlackElo "2423"]
[Result "1-0"]
[Round "06"]
[TimeControl "180+1"]
[Date "2022.11.01"]
[WhiteClock "0:00:08"]
[BlackClock "0:00:32"]

1. Nf3 {[%clk 0:03:00]}  d5 {[%clk 0:02:59]} 2. c4 {[%clk 0:03:00]}  d4 {[%clk 0:02:58]} 3. b4 {[%clk 0:03:00]}  g5 {[%clk 0:02:58]} 4. h3 {[%clk 0:02:47]}  Bg7 {[%clk 0:02:57]} 5. d3 {[%clk 0:02:37]}  h6 {[%clk 0:02:57]} 6. Bb2 {[%clk 0:02:28]}  e5 {[%clk 0:02:57]} 7. e3 {[%clk 0:02:22]}  a5 {[%clk 0:02:54]} 8. b5 {[%clk 0:02:16]}  Ne7 {[%clk 0:02:46]} 9. Be2 {[%clk 0:02:09]}  Nf5 {[%clk 0:02:42]} 10. g4 {[%clk 0:02:03]}  Ne7 {[%clk 0:02:38]} 11. Nbd2 {[%clk 0:02:01]}  a4 {[%clk 0:02:37]} 12. Ba3 {[%clk 0:01:57]}  c6 {[%clk 0:02:18]} 13. Ne4 {[%clk 0:01:45]}  O-O {[%clk 0:02:18]} 14. h4 {[%clk 0:01:42]}  Bxg4 {[%clk 0:02:18]} 15. hxg5 {[%clk 0:01:38]}  Nf5 {[%clk 0:02:09]} 16. Bxf8 {[%clk 0:01:32]}  Qxf8 {[%clk 0:02:10]} 17. Nf6+ {[%clk 0:01:30]}  Bxf6 {[%clk 0:02:09]} 18. gxf6 {[%clk 0:01:31]}  dxe3 {[%clk 0:02:02]} 19. Rg1 {[%clk 0:01:22]}  h5 {[%clk 0:02:01]} 20. fxe3 {[%clk 0:00:55]}  Nxe3 {[%clk 0:01:48]} 21. Qd2 {[%clk 0:00:54]}  Qc5 {[%clk 0:01:49]} 22. d4 {[%clk 0:00:42]}  exd4 {[%clk 0:01:49]} 23. Nxd4 {[%clk 0:00:41]}  Qxd4 {[%clk 0:01:49]} 24. Qxd4 {[%clk 0:00:41]}  Nc2+ {[%clk 0:01:49]} 25. Kd2 {[%clk 0:00:41]}  Nxd4 {[%clk 0:01:50]} 26. Bxg4 {[%clk 0:00:42]}  cxb5 {[%clk 0:01:14]} 27. Bxh5+ {[%clk 0:00:37]}  Kf8 {[%clk 0:01:14]} 28. Rg7 {[%clk 0:00:34]}  Nbc6 {[%clk 0:01:11]} 29. Rxf7+ {[%clk 0:00:34]}  Kg8 {[%clk 0:01:12]} 30. Rg1+ {[%clk 0:00:32]}  Kh8 {[%clk 0:01:12]} 31. Rgg7 {[%clk 0:00:31]}  Nf5 {[%clk 0:01:08]} 32. Rh7+ {[%clk 0:00:29]}  Kg8 {[%clk 0:01:09]} 33. Bg6 {[%clk 0:00:29]}  Ne5 {[%clk 0:01:07]} 34. Rfg7+ {[%clk 0:00:17]}  Nxg7 {[%clk 0:01:07]} 35. Rxg7+ {[%clk 0:00:16]}  Kf8 {[%clk 0:01:05]} 36. cxb5 {[%clk 0:00:16]}  Rd8+ {[%clk 0:01:03]} 37. Kc3 {[%clk 0:00:16]}  Rd6 {[%clk 0:01:03]} 38. Be4 {[%clk 0:00:14]}  b6 {[%clk 0:01:01]} 39. Ra7 {[%clk 0:00:13]}  Rxf6 {[%clk 0:01:00]} 40. Rxa4 {[%clk 0:00:14]}  Nd7 {[%clk 0:00:59]} 41. Bc6 {[%clk 0:00:13]}  Nc5 {[%clk 0:00:59]} 42. Ra8+ {[%clk 0:00:14]}  Ke7 {[%clk 0:01:00]} 43. Rb8 {[%clk 0:00:14]}  Rh6 {[%clk 0:00:58]} 44. Kd4 {[%clk 0:00:08]}  Rh4+ {[%clk 0:00:56]} 45. Ke5 {[%clk 0:00:08]}  Rh5+ {[%clk 0:00:56]} 46. Kf4 {[%clk 0:00:08]}  Na4 {[%clk 0:00:56]} 47. Ra8 {[%clk 0:00:08]}  Rh4+ {[%clk 0:00:56]} 48. Kg5 {[%clk 0:00:08]}  Rd4 {[%clk 0:00:55]} 49. Kf5 {[%clk 0:00:07]}  Nc5 {[%clk 0:00:50]} 50. Rb8 {[%clk 0:00:07]}  Na4 {[%clk 0:00:49]} 51. Ke5 {[%clk 0:00:07]}  Rd2 {[%clk 0:00:48]} 52. Rb7+ {[%clk 0:00:08]}  Kf8 {[%clk 0:00:49]} 53. Ra7 {[%clk 0:00:07]}  Rxa2 {[%clk 0:00:48]} 54. Bf3 {[%clk 0:00:06]}  Ra1 {[%clk 0:00:47]} 55. Kf6 {[%clk 0:00:05]}  Ke8 {[%clk 0:00:45]} 56. Bg4 {[%clk 0:00:04]}  Rf1+ {[%clk 0:00:37]} 57. Bf5 {[%clk 0:00:04]}  Kd8 {[%clk 0:00:34]} 58. Rxa4 {[%clk 0:00:04]}  Kc7 {[%clk 0:00:35]} 59. Rc4+ {[%clk 0:00:05]}  Kb7 {[%clk 0:00:35]} 60. Ke5 {[%clk 0:00:05]}  Ka7 {[%clk 0:00:35]} 61. Be4 {[%clk 0:00:05]}  Rg1 {[%clk 0:00:33]} 62. Kd6 {[%clk 0:00:05]}  Rd1+ {[%clk 0:00:30]} 63. Bd5 {[%clk 0:00:05]}  Ra1 {[%clk 0:00:30]} 64. Rc7+ {[%clk 0:00:05]}  Kb8 {[%clk 0:00:31]} 65. Rb7+ {[%clk 0:00:05]}  Kc8 {[%clk 0:00:32]} 66. Rxb6 {[%clk 0:00:06]}  Rg1 {[%clk 0:00:32]} 67. Be6+ {[%clk 0:00:07]}  Kd8 {[%clk 0:00:32]} 68. Rb8# {[%clk 0:00:08]} 1-0


[Site "https://www.chess.com"]

[Event "Titled Tuesday Blitz November 01 Late 2022"]
[White "Zilleruelo Irizarry, Diego"]
[Black "Harvey, Marcus R"]
[WhiteFideId "3101460"]
[BlackFideId "400092"]
[WhiteElo "1998"]
[BlackElo "2457"]
[Result "0-1"]
[Round "06"]
[TimeControl "180+1"]
[Date "2022.11.02"]
[WhiteClock "0:00:09"]
[BlackClock "0:00:22"]

1. e4 {[%clk 0:03:00]}  e6 {[%clk 0:03:00]} 2. d4 {[%clk 0:03:00]}  d5 {[%clk 0:02:41]} 3. Nd2 {[%clk 0:02:59]}  h6 {[%clk 0:02:40]} 4. Ngf3 {[%clk 0:02:58]}  Nf6 {[%clk 0:02:40]} 5. e5 {[%clk 0:02:58]}  Nfd7 {[%clk 0:02:40]} 6. Nb3 {[%clk 0:02:49]}  c5 {[%clk 0:02:41]} 7. dxc5 {[%clk 0:02:49]}  Nxc5 {[%clk 0:02:35]} 8. Be2 {[%clk 0:02:41]}  Nc6 {[%clk 0:02:35]} 9. O-O {[%clk 0:02:38]}  Nd7 {[%clk 0:02:33]} 10. Bb5 {[%clk 0:02:33]}  a6 {[%clk 0:02:30]} 11. Bxc6 {[%clk 0:02:30]}  bxc6 {[%clk 0:02:31]} 12. c4 {[%clk 0:02:27]}  a5 {[%clk 0:02:31]} 13. cxd5 {[%clk 0:02:26]}  cxd5 {[%clk 0:02:30]} 14. Nbd4 {[%clk 0:02:26]}  Ba6 {[%clk 0:02:30]} 15. Re1 {[%clk 0:02:26]}  Qb6 {[%clk 0:02:26]} 16. Bd2 {[%clk 0:02:14]}  Bc5 {[%clk 0:02:22]} 17. Bc3 {[%clk 0:02:11]}  O-O {[%clk 0:02:19]} 18. Qd2 {[%clk 0:02:11]}  a4 {[%clk 0:02:13]} 19. b3 {[%clk 0:02:08]}  axb3 {[%clk 0:02:11]} 20. axb3 {[%clk 0:02:09]}  Bb7 {[%clk 0:02:02]} 21. b4 {[%clk 0:01:59]}  Be7 {[%clk 0:02:00]} 22. h3 {[%clk 0:01:55]}  Rxa1 {[%clk 0:01:57]} 23. Rxa1 {[%clk 0:01:54]}  Rc8 {[%clk 0:01:58]} 24. Nb3 {[%clk 0:01:05]}  Qc7 {[%clk 0:01:41]} 25. Bd4 {[%clk 0:01:04]}  Nb6 {[%clk 0:01:21]} 26. Ra7 {[%clk 0:00:34]}  Nc4 {[%clk 0:01:21]} 27. Qe1 {[%clk 0:00:28]}  Ra8 {[%clk 0:01:20]} 28. Rxa8+ {[%clk 0:00:25]}  Bxa8 {[%clk 0:01:21]} 29. b5 {[%clk 0:00:19]}  Bb7 {[%clk 0:01:14]} 30. Qc3 {[%clk 0:00:17]}  Qc8 {[%clk 0:01:11]} 31. Nfd2 {[%clk 0:00:16]}  Na3 {[%clk 0:00:44]} 32. Qxc8+ {[%clk 0:00:15]}  Bxc8 {[%clk 0:00:45]} 33. Bc5 {[%clk 0:00:16]}  Bxc5 {[%clk 0:00:43]} 34. Nxc5 {[%clk 0:00:17]}  Nxb5 {[%clk 0:00:44]} 35. Ndb3 {[%clk 0:00:15]}  Nc7 {[%clk 0:00:41]} 36. Nd4 {[%clk 0:00:10]}  Ba6 {[%clk 0:00:41]} 37. f4 {[%clk 0:00:04]}  Bc4 {[%clk 0:00:39]} 38. Kf2 {[%clk 0:00:04]}  Kf8 {[%clk 0:00:31]} 39. g4 {[%clk 0:00:04]}  Ke7 {[%clk 0:00:31]} 40. f5 {[%clk 0:00:05]}  Nb5 {[%clk 0:00:22]} 41. Nxb5 {[%clk 0:00:04]}  Bxb5 {[%clk 0:00:23]} 42. Ke3 {[%clk 0:00:05]}  exf5 {[%clk 0:00:23]} 43. gxf5 {[%clk 0:00:05]}  f6 {[%clk 0:00:23]} 44. e6 {[%clk 0:00:04]}  Bf1 {[%clk 0:00:19]} 45. h4 {[%clk 0:00:03]}  Bh3 {[%clk 0:00:19]} 46. Kf4 {[%clk 0:00:03]}  h5 {[%clk 0:00:19]} 47. Nb3 {[%clk 0:00:02]}  g6 {[%clk 0:00:19]} 48. Nd4 {[%clk 0:00:03]}  gxf5 {[%clk 0:00:19]} 49. Nxf5+ {[%clk 0:00:04]}  Bxf5 {[%clk 0:00:18]} 50. Kxf5 {[%clk 0:00:05]}  d4 {[%clk 0:00:17]} 51. Ke4 {[%clk 0:00:06]}  Kxe6 {[%clk 0:00:18]} 52. Kxd4 {[%clk 0:00:07]}  Kf5 {[%clk 0:00:18]} 53. Ke3 {[%clk 0:00:07]}  Kg4 {[%clk 0:00:19]} 54. Ke4 {[%clk 0:00:06]}  Kxh4 {[%clk 0:00:20]} 55. Kf4 {[%clk 0:00:07]}  Kh3 {[%clk 0:00:19]} 56. Kf3 {[%clk 0:00:07]}  h4 {[%clk 0:00:19]} 57. Kf2 {[%clk 0:00:07]}  Kg4 {[%clk 0:00:20]} 58. Kg2 {[%clk 0:00:07]}  f5 {[%clk 0:00:20]} 59. Kf2 {[%clk 0:00:08]}  f4 {[%clk 0:00:21]} 60. Kg2 {[%clk 0:00:08]}  f3+ {[%clk 0:00:22]} 61. Kf2 {[%clk 0:00:09]}  Kf4 {[%clk 0:00:22]} 62. Kf1 {[%clk 0:00:09]}  Kg3 {[%clk 0:00:22]} 63. Kg1 {[%clk 0:00:10]}  f2+ {[%clk 0:00:22]} 64. Kf1 {[%clk 0:00:09]}  h3 {[%clk 0:00:22]} 0-1


[Site "https://www.chess.com"]